fUST/lending_fUST_20250411
["ID","MTS","AMOUNT","RATE_DAILY","PERIOD"]
[357678477,1744312244182,-132.0625804,0.00016438,2]
[357678480,1744312246634,-401.73733589,0.00016438,2]
[357678481,1744312246643,-500.0,0.00016438,2]
[357678482,1744312246652,-500.0,0.00016438,2]
[357678483,1744312246662,-500.0,0.00016438,2]
[357678484,1744312246671,-500.0,0.00016438,2]
[357678485,1744312246680,-258.05266411,0.00016438,2]
[357678486,1744312277797,250.0,0.0001492,2]
[357678487,1744312328718,250.0,0.0001492,2]
[357678488,1744312698731,560.1841243,0.00014949,2]
[357678489,1744312891719,191.365511,0.00014949,2]
[357678509,1744313431482,6293.1516117,0.00014949,2]
[357678524,1744313432639,-250.0,0.00015901,2]
[357678526,1744313432650,-500.0,0.00015913,2]
[357678527,1744313432660,-554.42718792,0.00015913,2]
[357678528,1744313432670,-102.40710778,0.00015922,2]
[357678538,1744313438855,-197.59289222,0.00015922,2]
[357678539,1744313438865,-212.32568908,0.00015923,2]
[357678540,1744313438874,-54.16254336,0.00015923,2]
[357678541,1744313438891,-445.83745664,0.00015923,2]
[357678542,1744313439060,-500.0,0.00015923,2]
[357678543,1744313439071,-441.45347666,0.00015923,2]
[357678544,1744313439081,-500.0,0.00015923,2]
[357678545,1744313439092,-500.0,0.00015923,2]
[357678546,1744313439102,-2398.22737319,0.00015924,2]
[357678643,1744313440984,-1052.76052833,0.00015924,2]
[357678670,1744313443591,-51610.41478484,0.00015924,2]
[357678677,1744313446619,-160187.30669421,0.00015924,2]
[357678678,1744313446678,-500.0,0.00015913,2]
[357678679,1744313446688,-500.043,0.00015913,2]
[357678680,1744313446698,-411.1867382,0.00015924,2]
[357678831,1744313974114,-195.25914762,0.00015034,2]
[357678848,1744314141618,-28.59462438,0.00015034,2]
[357678849,1744314141652,-215.28982542,0.00015034,2]
[357678860,1744314433097,24900.0,0.00014679,2]
[357678901,1744314632627,-584.71017458,0.00015034,2]
[357678902,1744314632636,-1097.23431524,0.00015405,2]
[357678903,1744314632646,-500.0,0.00015505,2]
[357678904,1744314632655,-500.0,0.00015505,2]
[357678905,1744314632666,-500.0,0.00015505,2]
[357678906,1744314632675,-195.25914762,0.00015505,2]
[357678907,1744314632685,-500.0,0.00015505,2]
[357678908,1744314632694,-263.55872124,0.00015505,2]
[357678909,1744314632704,-500.0,0.00015505,2]
[357678910,1744314632714,-500.0,0.00015505,2]
[357678911,1744314632723,-500.0,0.00015505,2]
[357678912,1744314632733,-500.0,0.00015505,2]
[357678913,1744314632743,-500.0,0.00015505,2]
[357678914,1744314632753,-500.0,0.00015505,2]
[357678915,1744314632762,-500.0,0.00015505,2]
[357678916,1744314632772,-500.0,0.00015505,2]
[357678917,1744314632782,-500.0,0.00015505,2]
[357678918,1744314632791,-500.0,0.00015505,2]
[357678919,1744314632801,-500.0,0.00015505,2]
[357678920,1744314632810,-500.0,0.00015505,2]
[357678921,1744314632820,-500.0,0.00015505,2]
[357678922,1744314632829,-500.0,0.00015505,2]
[357678923,1744314632839,-500.0,0.00015505,2]
[357678924,1744314632849,-500.0,0.00015505,2]
[357678925,1744314632861,-500.0,0.00015505,2]
[357678926,1744314632871,-500.0,0.00015505,2]
[357678927,1744314632881,-533.20717812,0.00015505,2]
[357678928,1744314632890,-500.0,0.00015505,2]
[357678929,1744314632900,-500.0,0.00015505,2]
[357678930,1744314632910,-500.0,0.00015505,2]
[357678931,1744314632920,-500.0,0.00015505,2]
[357678932,1744314632930,-500.0,0.00015505,2]
[357678933,1744314632939,-500.0,0.00015505,2]
[357678934,1744314632949,-500.0,0.00015505,2]
[357678935,1744314632959,-500.0,0.00015505,2]
[357678936,1744314632970,-500.0,0.00015505,2]
[357678937,1744314632980,-500.0,0.00015505,2]
[357678938,1744314632990,-200.0,0.00015505,2]
[357678939,1744314633000,-500.0,0.00015505,2]
[357678940,1744314633010,-500.0,0.00015505,2]
[357678941,1744314633021,-500.0,0.00015505,2]
[357678942,1744314633030,-500.0,0.00015505,2]
[357678943,1744314633040,-500.0,0.00015505,2]
[357678944,1744314633051,-500.0,0.00015505,2]
[357678945,1744314633060,-500.0,0.00015505,2]
[357678946,1744314633071,-500.0,0.00015505,2]
[357678947,1744314633081,-500.0,0.00015505,2]
[357678948,1744314633091,-500.0,0.00015505,2]
[357678949,1744314633100,-500.0,0.00015505,2]
[357678950,1744314633110,-500.0,0.00015505,2]
[357678951,1744314633119,-500.0,0.00015505,2]
[357678952,1744314633129,-500.0,0.00015505,2]
[357678953,1744314633139,-500.0,0.00015505,2]
[357678954,1744314633149,-500.0,0.00015505,2]
[357678955,1744314633159,-500.0,0.00015505,2]
[357678956,1744314633172,-500.0,0.00015505,2]
[357678957,1744314633182,-500.0,0.00015505,2]
[357678958,1744314633191,-529.28430236,0.00015505,2]
[357678959,1744314633202,-500.0,0.00015505,2]
[357678960,1744314633212,-500.0,0.00015505,2]
[357678961,1744314633222,-500.0,0.00015505,2]
[357678962,1744314633232,-500.0,0.00015505,2]
[357678963,1744314633242,-500.0,0.00015505,2]
[357678964,1744314633252,-298.86460302,0.00015505,2]
[357678965,1744314633262,-500.0,0.00015505,2]
[357678966,1744314633272,-500.0,0.00015505,2]
[357678967,1744314633283,-281.12600847,0.00015505,2]
[357678968,1744314633294,-500.0,0.00015505,2]
[357678969,1744314633303,-500.0,0.00015505,2]
[357678970,1744314633313,-500.0,0.00015505,2]
[357678971,1744314633323,-500.0,0.00015505,2]
[357678972,1744314633332,-500.0,0.00015505,2]
[357678973,1744314633342,-7450.17832117,0.00015604,2]
[357678974,1744314633352,-250.0,0.00015801,2]
[357678975,1744314633362,-250.0,0.00015824,2]
[357678976,1744314633372,-150.55585574,0.00015988,2]
[357678977,1744314633382,-12536.72526453,0.00016025,3]
[357678978,1744314633392,-837.80299543,0.00016025,3]
[357678979,1744314633402,-150.55585574,0.00016071,2]
[357678980,1744314633413,-837.80299543,0.00016086,2]
[357678981,1744314633423,-160.0,0.00016086,2]
[357678982,1744314633433,-160.0,0.00016086,2]
[357678983,1744314633442,-160.0,0.00016086,2]
[357678984,1744314633453,-150.55585574,0.00016155,2]
[357678985,1744314633463,-150.55585574,0.00016238,2]
[357678986,1744314633474,-419.64641374,0.00016272,2]
[357678987,1744314633484,-12536.72526453,0.00016276,2]
[357678988,1744314633494,-1097.23431523,0.00016321,2]
[357678989,1744314633663,-76692.84273106,0.00016338,2]
[357678990,1744314633673,-29741.0088758,0.00016338,3]
[357678991,1744314633683,-32933.11912332,0.00016338,2]
[357678992,1744314633701,-267.88980492,0.00016338,2]
[357678993,1744314633712,-86810.0237608,0.00016338,2]
[357679007,1744314637934,-500.0,0.00015504,2]
[357679008,1744314637944,-500.0,0.00015504,2]
[357679009,1744314637954,-315.32146495,0.00015504,2]
[357679010,1744314637964,-500.0,0.00015504,2]
[357679011,1744314637973,-160.0,0.00016272,2]
[357679012,1744314637983,-3764.12595277,0.00016338,2]
[357679013,1744314637995,-6861.55673083,0.00016338,2]
[357679035,1744314639979,-289.55020414,0.00016338,2]
[357679065,1744314727962,250.0,0.00014934,2]
[357679138,1744315831753,-300.0,0.00015106,2]
[357679139,1744315831763,-25.05563696,0.00015107,2]
[357679140,1744315831776,-474.94436304,0.00015107,2]
[357679141,1744315831786,-184.22413723,0.00015107,2]
[357679142,1744315831795,-500.0,0.00015107,2]
[357679143,1744315831804,-500.0,0.00015107,2]
[357679144,1744315831813,-500.0,0.00015107,2]
[357679145,1744315831823,-500.0,0.00015107,2]
[357679146,1744315831833,-500.0,0.00015107,2]
[357679147,1744315831842,-500.0,0.00015107,2]
[357679148,1744315831851,-500.0,0.00015107,2]
[357679149,1744315831861,-500.0,0.00015107,2]
[357679150,1744315831870,-500.0,0.00015107,2]
[357679152,1744315831880,-500.0,0.00015107,2]
[357679171,1744315832075,-500.0,0.00015107,2]
[357679172,1744315832086,-500.0,0.00015107,2]
[357679173,1744315832096,-500.0,0.00015107,2]
[357679174,1744315832105,-470.64372884,0.00015107,2]
[357679175,1744315832115,-500.0,0.00015107,2]
[357679176,1744315832125,-500.0,0.00015107,2]
[357679177,1744315832135,-500.0,0.00015107,2]
[357679178,1744315832145,-500.0,0.00015107,2]
[357679179,1744315832154,-500.0,0.00015107,2]
[357679180,1744315832164,-500.0,0.00015107,2]
[357679181,1744315832174,-500.0,0.00015107,2]
[357679182,1744315832183,-500.0,0.00015107,2]
[357679183,1744315832194,-500.0,0.00015107,2]
[357679184,1744315832204,-296.22520169,0.00015107,2]
[357679185,1744315832215,-102.52607103,0.00015107,2]
[357679186,1744315832228,-397.47392897,0.00015107,2]
[357679187,1744315832238,-500.0,0.00015107,2]
[357679188,1744315832248,-500.0,0.00015107,2]
[357679189,1744315832258,-500.0,0.00015107,2]
[357679190,1744315832271,-500.0,0.00015107,2]
[357679191,1744315832281,-500.0,0.00015107,2]
[357679192,1744315832290,-500.0,0.00015107,2]
[357679193,1744315832300,-281.95495931,0.00015107,2]
[357679194,1744315832310,-500.0,0.00015107,2]
[357679195,1744315832320,-21683.1291062,0.0001511,2]
[357679196,1744315832330,-223.8537726,0.00015343,2]
[357679197,1744315832340,-500.0,0.00015343,2]
[357679198,1744315832350,-419.64641374,0.00016076,2]
[357679199,1744315832359,-160.0,0.00016076,2]
[357679200,1744315832370,-250.0,0.00016238,2]
[357679201,1744315832379,-23413.83830445,0.00016238,2]
[357679202,1744315832389,-837.80299543,0.00016274,2]
[357679203,1744315832398,-160.0,0.00016274,2]
[357679204,1744315832408,-160.0,0.00016274,2]
[357679205,1744315832418,-12536.72526453,0.00016274,2]
[357679206,1744315832428,-19764.73163928,0.00016338,2]
[357679207,1744315832437,-1355.92,0.000164,2]
[357679208,1744315832447,-3000.0,0.000164,2]
[357679209,1744315832456,-3000.0,0.0001641,2]
[357679210,1744315832466,-3000.0,0.0001642,2]
[357679211,1744315832475,-151.0,0.00016428,2]
[357679212,1744315832485,-200.0,0.00016428,2]
[357679213,1744315832496,-3000.0,0.0001643,2]
[357679214,1744315832506,-176.06663849,0.00016437,2]
[357679215,1744315832515,-183.53561751,0.00016437,2]
[357679216,1744315832526,-12536.72526453,0.00016438,3]
[357679217,1744315832535,-15479.52568512,0.00016438,2]
[357679218,1744315832551,-21213.56543286,0.00016438,2]
[357679219,1744315832563,-2882.46863058,0.00016438,2]
[357679220,1744315832572,-14870.5044379,0.00016438,3]
[357679221,1744315832582,-837.80299543,0.00016438,3]
[357679222,1744315832591,-502.45479096,0.00016438,2]
[357679223,1744315832601,-500.0,0.00016438,2]
[357679224,1744315832611,-460.69316557,0.00016438,2]
[357679225,1744315832620,-503.46486739,0.00016438,2]
[357679226,1744315832630,-500.0,0.00016438,2]
[357679227,1744315832640,-505.69441153,0.00016438,2]
[357679228,1744315832650,-502.85277122,0.00016438,2]
[357679229,1744315832659,-500.0,0.00016438,2]
[357679230,1744315832669,-500.0,0.00016438,2]
[357679231,1744315832679,-519.58990664,0.00016438,2]
[357679232,1744315832689,-519.70910029,0.00016438,2]
[357679233,1744315832698,-537.93398361,0.00016438,2]
[357679234,1744315832708,-507.11935493,0.00016438,2]
[357679235,1744315832718,-503.36520055,0.00016438,2]
[357679236,1744315832728,-502.73462613,0.00016438,2]
[357679237,1744315832738,-501.98338329,0.00016438,2]
[357679238,1744315832748,-500.0,0.00016438,2]
[357679239,1744315832758,-307.60389464,0.00016438,2]
[357679240,1744315832769,-500.0,0.00016438,2]
[357679241,1744315832778,-500.0,0.00016438,2]
[357679242,1744315832788,-500.0,0.00016438,2]
[357679243,1744315832798,-500.0,0.00016438,2]
[357679244,1744315832808,-500.0,0.00016438,2]
[357679245,1744315832818,-1269.87,0.00016438,2]
[357679246,1744315832827,-500.0,0.00016438,2]
[357679247,1744315832837,-500.0,0.00016438,2]
[357679248,1744315832846,-500.0,0.00016438,2]
[357679249,1744315832856,-500.0,0.00016438,2]
[357679250,1744315832866,-524.63633883,0.00016438,2]
[357679251,1744315832875,-500.0,0.00016438,2]
[357679252,1744315832885,-500.0,0.00016438,2]
[357679253,1744315832895,-500.0,0.00016438,2]
[357679254,1744315832905,-658.02,0.00016438,2]
[357679255,1744315832914,-500.0,0.00016438,2]
[357679256,1744315832924,-500.0,0.00016438,2]
[357679257,1744315832933,-500.0,0.00016438,2]
[357679258,1744315832943,-500.0,0.00016438,2]
[357679259,1744315832953,-500.0,0.00016438,2]
[357679260,1744315832963,-506.95,0.00016438,2]
[357679261,1744315832973,-500.0,0.00016438,2]
[357679262,1744315832983,-500.0,0.00016438,2]
[357679263,1744315832992,-500.0,0.00016438,2]
[357679264,1744315833002,-500.0,0.00016438,2]
[357679265,1744315833013,-500.0,0.00016438,2]
[357679266,1744315833022,-500.0,0.00016438,2]
[357679267,1744315833033,-500.0,0.00016438,2]
[357679268,1744315833043,-500.0,0.00016438,2]
[357679269,1744315833053,-500.0,0.00016438,2]
[357679270,1744315833062,-500.0,0.00016438,2]
[357679271,1744315833072,-500.0,0.00016438,2]
[357679272,1744315833083,-500.0,0.00016438,2]
[357679273,1744315833093,-500.0,0.00016438,2]
[357679274,1744315833103,-500.0,0.00016438,2]
[357679275,1744315833113,-500.0,0.00016438,2]
[357679276,1744315833124,-500.0,0.00016438,2]
[357679277,1744315833133,-500.0,0.00016438,2]
[357679278,1744315833143,-500.0,0.00016438,2]
[357679279,1744315833153,-572.23,0.00016438,2]
[357679280,1744315833163,-500.0,0.00016438,2]
[357679281,1744315833174,-500.0,0.00016438,2]
[357679282,1744315833184,-500.0,0.00016438,2]
[357679283,1744315833193,-500.0,0.00016438,2]
[357679284,1744315833203,-711.68,0.00016438,2]
[357679285,1744315833213,-500.0,0.00016438,2]
[357679286,1744315833223,-907.25,0.00016438,2]
[357679287,1744315833233,-500.0,0.00016438,2]
[357679288,1744315833244,-643.03,0.00016438,2]
[357679289,1744315833254,-546.19520438,0.00016438,2]
[357679290,1744315833264,-467.2554633,0.00016438,2]
[357679291,1744315833277,-500.0,0.00016438,2]
[357679292,1744315833288,-500.0,0.00016438,2]
[357679293,1744315833297,-636.64,0.00016438,2]
[357679294,1744315833309,-500.0,0.00016438,2]
[357679295,1744315833319,-1009.13,0.00016438,2]
[357679296,1744315833328,-500.0,0.00016438,2]
[357679297,1744315833338,-500.0,0.00016438,2]
[357679298,1744315833350,-1036.57,0.00016438,2]
[357679299,1744315833360,-500.0,0.00016438,2]
[357679300,1744315833370,-500.0,0.00016438,2]
[357679301,1744315833379,-500.0,0.00016438,2]
[357679302,1744315833389,-500.0,0.00016438,2]
[357679303,1744315833399,-1372.94,0.00016438,2]
[357679304,1744315833408,-500.0,0.00016438,2]
[357679305,1744315833419,-500.0,0.00016438,2]
[357679306,1744315833428,-500.0,0.00016438,2]
[357679307,1744315833438,-500.0,0.00016438,2]
[357679308,1744315833448,-500.0,0.00016438,2]
[357679309,1744315833459,-500.0,0.00016438,2]
[357679310,1744315833468,-500.0,0.00016438,2]
[357679311,1744315833479,-500.0,0.00016438,2]
[357679312,1744315833490,-500.0,0.00016438,2]
[357679313,1744315833501,-500.0,0.00016438,2]
[357679314,1744315833512,-500.0,0.00016438,2]
[357679315,1744315833522,-500.0,0.00016438,2]
[357679316,1744315833532,-500.0,0.00016438,2]
[357679317,1744315833543,-500.96075137,0.00016438,2]
[357679318,1744315833554,-520.66534353,0.00016438,2]
[357679319,1744315833564,-500.0,0.00016438,2]
[357679320,1744315833575,-500.0,0.00016438,2]
[357679321,1744315833587,-500.0,0.00016438,2]
[357679322,1744315833597,-500.0,0.00016438,2]
[357679323,1744315833606,-500.0,0.00016438,2]
[357679324,1744315833617,-402.68262168,0.00016438,2]
[357679325,1744315833627,-819.55,0.00016438,2]
[357679326,1744315833638,-507.60654201,0.00016438,2]
[357679327,1744315833648,-574.58,0.00016438,2]
[357679328,1744315833658,-500.0,0.00016438,2]
[357679329,1744315833668,-508.87,0.00016438,2]
[357679330,1744315833678,-500.0,0.00016438,2]
[357679331,1744315833689,-500.0,0.00016438,2]
[357679332,1744315833700,-500.0,0.00016438,2]
[357679333,1744315833710,-499.98087625,0.00016438,2]
[357679334,1744315833720,-874.3,0.00016438,2]
[357679335,1744315833730,-564.49,0.00016438,2]
[357679336,1744315833742,-501.23941656,0.00016438,2]
[357679337,1744315833752,-500.0,0.00016438,2]
[357679338,1744315833762,-500.0,0.00016438,2]
[357679339,1744315833772,-506.83036934,0.00016438,2]
[357679340,1744315833783,-500.0,0.00016438,2]
[357679341,1744315833793,-519.47,0.00016438,2]
[357679342,1744315833803,-500.0,0.00016438,2]
[357679343,1744315833812,-517.52,0.00016438,2]
[357679344,1744315833822,-500.0,0.00016438,2]
[357679345,1744315833832,-500.0,0.00016438,2]
[357679346,1744315833842,-500.0,0.00016438,2]
[357679347,1744315833852,-867.13,0.00016438,2]
[357679348,1744315833862,-500.0,0.00016438,2]
[357679349,1744315833872,-1150.69,0.00016438,2]
[357679350,1744315833882,-500.0,0.00016438,2]
[357679351,1744315833892,-2171.19,0.00016438,2]
[357679352,1744315833902,-500.0,0.00016438,2]
[357679353,1744315833912,-500.0,0.00016438,2]
[357679354,1744315833922,-244.88403219,0.00016438,2]
[357679355,1744315833942,-255.11596781,0.00016438,2]
[357679356,1744315833953,-500.0,0.00016438,2]
[357679357,1744315833963,-7.20324915,0.00016438,2]
[357679362,1744315838018,-268.735003,0.00015243,2]
[357679363,1744315838031,-554.19073344,0.00015243,2]
[357679364,1744315838041,-269.46438249,0.00016437,2]
[357679365,1744315838051,-167.6485827,0.00016437,2]
[357679428,1744315842875,-822.92573642,0.00016143,2]
[357679429,1744315842885,-492.79675085,0.00016438,2]
[357679430,1744315842896,-500.0,0.00016438,2]
[357679431,1744315842906,-500.0,0.00016438,2]
[357679432,1744315842916,-500.0,0.00016438,2]
[357679433,1744315842926,-500.0,0.00016438,2]
[357679434,1744315842936,-500.0,0.00016438,2]
[357679435,1744315842946,-500.0,0.00016438,2]
[357679436,1744315842955,-543.72,0.00016438,2]
[357679437,1744315842965,-500.0,0.00016438,2]
[357679438,1744315842975,-500.0,0.00016438,2]
[357679439,1744315842985,-1273.07,0.00016438,2]
[357679440,1744315842995,-1726.31,0.00016438,2]
[357679441,1744315843006,-500.0,0.00016438,2]
[357679442,1744315843015,-641.65439337,0.00016438,2]
[357679443,1744315843025,-500.0,0.00016438,2]
[357679444,1744315843035,-500.0,0.00016438,2]
[357679445,1744315843044,-500.0,0.00016438,2]
[357679446,1744315843054,-1231.34,0.00016438,2]
[357679447,1744315843064,-500.0,0.00016438,2]
[357679448,1744315843073,-500.0,0.00016438,2]
[357679449,1744315843083,-1625.51,0.00016438,2]
[357679450,1744315843092,-652.37,0.00016438,2]
[357679451,1744315843102,-307.4090598,0.00016438,2]
[357679452,1744315843111,-500.0,0.00016438,2]
[357679453,1744315843121,-1779.55,0.00016438,2]
[357679454,1744315843130,-545.26,0.00016438,2]
[357679455,1744315843140,-802.75,0.00016438,2]
[357679456,1744315843149,-1272.47,0.00016438,2]
[357679457,1744315843159,-500.0,0.00016438,2]
[357679458,1744315843168,-514.59,0.00016438,2]
[357679459,1744315843178,-1507.51,0.00016438,2]
[357679461,1744315843188,-678.8,0.00016438,2]
[357679462,1744315843198,-500.0,0.00016438,2]
[357679463,1744315843208,-2045.02,0.00016438,2]
[357679464,1744315843218,-500.0,0.00016438,2]
[357679465,1744315843228,-500.0,0.00016438,2]
[357679466,1744315843236,-734.04,0.00016438,2]
[357679467,1744315843246,-500.0,0.00016438,2]
[357679468,1744315843256,-500.0,0.00016438,2]
[357679469,1744315843265,-500.0,0.00016438,2]
[357679470,1744315843278,-745.17,0.00016438,2]
[357679471,1744315843287,-152.221674,0.00016438,2]
[357679472,1744315843297,-188.54899829,0.00016438,2]
[357679475,1744315845908,-311.45100171,0.00016438,2]
[357679476,1744315845918,-500.0,0.00016438,2]
[357679477,1744315845928,-500.0,0.00016438,2]
[357679478,1744315845938,-1207.55,0.00016438,2]
[357679479,1744315845948,-1256.0022073,0.00016438,2]
[357679480,1744315846065,-1789.4577927,0.00016438,2]
[357679481,1744315846076,-500.0,0.00016438,2]
[357679482,1744315846085,-500.0,0.00016438,2]
[357679483,1744315846095,-500.0,0.00016438,2]
[357679484,1744315846105,-2739.83,0.00016438,2]
[357679485,1744315846114,-847.64,0.00016438,2]
[357679486,1744315846124,-500.0,0.00016438,2]
[357679487,1744315846133,-500.0,0.00016438,2]
[357679488,1744315846143,-500.0,0.00016438,2]
[357679489,1744315846153,-690.93,0.00016438,2]
[357679490,1744315846163,-500.0,0.00016438,2]
[357679491,1744315846173,-814.23,0.00016438,2]
[357679492,1744315846182,-502.02691652,0.00016438,2]
[357679493,1744315846192,-500.0,0.00016438,2]
[357679494,1744315846202,-619.04237138,0.00016438,2]
[357679495,1744315846212,-3040.53,0.00016438,2]
[357679496,1744315846222,-710.9,0.00016438,2]
[357679497,1744315846232,-505.62227063,0.00016438,2]
[357679498,1744315846241,-500.0,0.00016438,2]
[357679499,1744315846251,-500.0,0.00016438,2]
[357679500,1744315846260,-500.0,0.00016438,2]
[357679501,1744315846271,-275.694205,0.00016438,2]
[357679502,1744315880717,-250.0,0.00015006,2]
[357679503,1744315930160,-250.0,0.00015006,2]
[357679504,1744316024342,-170.20622126,0.00015007,2]
[357679515,1744316929626,198.96397308,0.0001516,7]
[357679559,1744317032113,-79.79377874,0.00015007,2]
[357679562,1744317032123,-300.0,0.00015096,2]
[357679564,1744317032132,-500.0,0.00015097,2]
[357679566,1744317032142,-500.0,0.00015097,2]
[357679568,1744317032151,-496.73819209,0.00015097,2]
[357679570,1744317032161,-588.46946686,0.00015097,2]
[357679571,1744317032170,-253.55055104,0.00015097,2]
[357679573,1744317032180,-8059.64,0.00015221,2]
[357679574,1744317032190,-183.8430431,0.00015429,2]
[357679576,1744317032199,-837.80299543,0.00016066,2]
[357679578,1744317032209,-160.0,0.00016066,2]
[357679581,1744317032219,-160.0,0.00016066,2]
[357679585,1744317032228,-12536.72526453,0.00016066,2]
[357679588,1744317032239,-500.0,0.00016071,2]
[357679591,1744317032248,-270.72502546,0.00016071,2]
[357679594,1744317032258,-500.0,0.00016071,2]
[357679597,1744317032267,-385.42299068,0.00016338,2]
[357679600,1744317032277,-406.43453605,0.00016338,2]
[357679603,1744317032287,-419.64641374,0.0001636,2]
[357679605,1744317032296,-1220.33,0.000164,2]
[357679606,1744317032306,-200.0,0.00016428,2]
[357679607,1744317032315,-151.0,0.00016428,2]
[357679609,1744317032326,-3775.00320901,0.00016436,2]
[357679611,1744317032336,-837.80299543,0.00016438,3]
[357679613,1744317032346,-12536.72526453,0.00016438,3]
[357679615,1744317032355,-19787.77987428,0.00016438,2]
[357679617,1744317032364,-15241.76144747,0.00016438,3]
[357679619,1744317032373,-511.37181439,0.00016438,2]
[357679621,1744317032383,-500.0,0.00016438,2]
[357679623,1744317032392,-505.0466875,0.00016438,2]
[357679625,1744317032402,-501.1935147,0.00016438,2]
[357679627,1744317032412,-503.9478968,0.00016438,2]
[357679629,1744317032421,-500.0,0.00016438,2]
[357679631,1744317032431,-524.78734017,0.00016438,2]
[357679633,1744317032441,-500.0,0.00016438,2]
[357679635,1744317032451,-503.43744513,0.00016438,2]
[357679637,1744317032461,-508.97457669,0.00016438,2]
[357679639,1744317032471,-501.98807863,0.00016438,2]
[357679641,1744317032481,-181.70484003,0.00016438,2]
[357679643,1744317032491,-500.0,0.00016438,2]
[357679645,1744317032501,-1220.02,0.00016438,2]
[357679647,1744317032510,-500.0,0.00016438,2]
[357679649,1744317032520,-507.54160947,0.00016438,2]
[357679650,1744317032529,-500.0,0.00016438,2]
[357679651,1744317032539,-500.0,0.00016438,2]
[357679652,1744317032549,-769.3,0.00016438,2]
[357679653,1744317032559,-500.0,0.00016438,2]
[357679654,1744317032569,-1102.75,0.00016438,2]
[357679655,1744317032579,-500.0,0.00016438,2]
[357679656,1744317032589,-597.15,0.00016438,2]
[357679657,1744317032599,-516.9058566,0.00016438,2]
[357679658,1744317032608,-400.59433602,0.00016438,2]
[357679659,1744317032623,-500.0,0.00016438,2]
[357679660,1744317032633,-500.0,0.00016438,2]
[357679661,1744317032642,-566.01,0.00016438,2]
[357679662,1744317032651,-500.0,0.00016438,2]
[357679663,1744317032662,-1523.79,0.00016438,2]
[357679664,1744317032672,-500.0,0.00016438,2]
[357679665,1744317032684,-500.0,0.00016438,2]
[357679666,1744317032694,-500.0,0.00016438,2]
[357679667,1744317032706,-500.0,0.00016438,2]
[357679668,1744317032716,-218.98543177,0.00016438,2]
[357679669,1744317032726,-500.0,0.00016438,2]
[357679670,1744317032735,-1264.9,0.00016438,2]
[357679671,1744317032745,-500.0,0.00016438,2]
[357679672,1744317032754,-500.0,0.00016438,2]
[357679673,1744317032764,-500.0,0.00016438,2]
[357679674,1744317032773,-500.0,0.00016438,2]
[357679675,1744317032783,-528.44,0.00016438,2]
[357679676,1744317032793,-500.0,0.00016438,2]
[357679677,1744317032803,-518.64713139,0.00016438,2]
[357679678,1744317032812,-500.0,0.00016438,2]
[357679679,1744317032822,-500.0,0.00016438,2]
[357679680,1744317032833,-500.0,0.00016438,2]
[357679681,1744317032843,-500.0,0.00016438,2]
[357679682,1744317032852,-504.94238345,0.00016438,2]
[357679683,1744317032862,-500.0,0.00016438,2]
[357679684,1744317032871,-500.0,0.00016438,2]
[357679685,1744317032882,-500.0,0.00016438,2]
[357679686,1744317032892,-505.61328746,0.00016438,2]
[357679687,1744317032903,-500.0,0.00016438,2]
[357679688,1744317032912,-503.13420309,0.00016438,2]
[357679689,1744317032922,-500.0,0.00016438,2]